[Event "Live Chess"]
[Site "Chess.com"]
[Date "2024.06.01"]
[Round "-"]
[White "RichardABates"]
[Black "CarmelJane"]
[Result "1-0"]
[WhiteElo "2237"]
[BlackElo "2084"]
[TimeControl "300"]
[EndTime "13:14:14 PDT"]
[Termination "RichardABates won by resignation"]

1. d4 {[%clk 0:04:57.2]} 1... Nf6 {[%clk 0:04:58.2]} 2. Nf3 {[%clk 0:04:55.4]}
2... e6 {[%clk 0:04:52]} 3. c4 {[%clk 0:04:53.8]} 3... b6 {[%clk 0:04:50]} 4. g3
{[%clk 0:04:52.3]} 4... Bb7 {[%clk 0:04:48.8]} 5. Bg2 {[%clk 0:04:50.9]} 5...
Be7 {[%clk 0:04:46.6]} 6. O-O {[%clk 0:04:49.3]} 6... O-O {[%clk 0:04:44.8]} 7.
Nc3 {[%clk 0:04:47.5]} 7... Ne4 {[%clk 0:04:43.9]} 8. Bd2 {[%clk 0:04:46.1]}
8... f5 {[%clk 0:04:36.5]} 9. d5 {[%clk 0:04:44.9]} 9... Nxc3 {[%clk 0:04:17.4]}
10. Bxc3 {[%clk 0:04:43.4]} 10... exd5 {[%clk 0:04:15.5]} 11. Ne5 {[%clk
0:04:32.5]} 11... h6 {[%clk 0:03:34.8]} 12. Bxd5+ {[%clk 0:04:29.2]} 1-0

[Event "Live Chess"]
[Site "Chess.com"]
[Date "2024.06.01"]
[Round "-"]
[White "GerardATHart"]
[Black "Brooms1989"]
[Result "0-1"]
[WhiteElo "1404"]
[BlackElo "1110"]
[TimeControl "300"]
[EndTime "13:14:18 PDT"]
[Termination "Brooms1989 won by checkmate"]

1. e4 {[%clk 0:04:54.7]} 1... e5 {[%clk 0:04:59.4]} 2. Nf3 {[%clk 0:04:53.1]}
2... Nc6 {[%clk 0:04:58.7]} 3. Bb5 {[%clk 0:04:51.3]} 3... a6 {[%clk 0:04:57.2]}
4. Ba4 {[%clk 0:04:49.7]} 4... Nf6 {[%clk 0:04:56.4]} 5. d3 {[%clk 0:04:48.1]}
5... d6 {[%clk 0:04:52.4]} 6. c3 {[%clk 0:04:46.9]} 6... g6 {[%clk 0:04:47.6]}
7. Nbd2 {[%clk 0:04:44.6]} 7... Bg7 {[%clk 0:04:46.7]} 8. Nf1 {[%clk 0:04:42.9]}
8... O-O {[%clk 0:04:45]} 9. Ng3 {[%clk 0:04:42.3]} 9... Re8 {[%clk 0:04:20.4]}
10. h3 {[%clk 0:04:40.7]} 10... d5 {[%clk 0:04:16.7]} 11. Qe2 {[%clk 0:04:16.9]}
11... dxe4 {[%clk 0:04:06.6]} 12. dxe4 {[%clk 0:04:12.3]} 12... b5 {[%clk
0:04:03.9]} 13. Bc2 {[%clk 0:04:09.3]} 13... b4 {[%clk 0:03:32.1]} 14. Bd2
{[%clk 0:04:04.8]} 14... bxc3 {[%clk 0:03:25.9]} 15. Bxc3 {[%clk 0:04:00.8]}
15... Nd4 {[%clk 0:03:19.4]} 16. Nxd4 {[%clk 0:03:44.6]} 16... exd4 {[%clk
0:03:19.3]} 17. Bd2 {[%clk 0:03:43]} 17... c5 {[%clk 0:02:59.2]} 18. Qc4 {[%clk
0:03:38.2]} 18... Qc7 {[%clk 0:02:50.7]} 19. O-O-O {[%clk 0:03:34.7]} 19... Be6
{[%clk 0:02:40.7]} 20. Qf1 {[%clk 0:03:26.7]} 20... Reb8 {[%clk 0:02:32.3]} 21.
Bb1 {[%clk 0:03:00]} 21... Qb6 {[%clk 0:02:08.6]} 22. b3 {[%clk 0:02:49.6]}
22... Bxb3 {[%clk 0:02:00.2]} 23. Bf4 {[%clk 0:02:27.4]} 23... Bc4 {[%clk
0:01:20.6]} 24. Qxc4 {[%clk 0:02:09.4]} 24... Qb2# {[%clk 0:01:18.2]} 0-1

[Event "Live Chess"]
[Site "Chess.com"]
[Date "2024.06.01"]
[Round "-"]
[White "defenderalist"]
[Black "Kyrylo7770"]
[Result "1-0"]
[WhiteElo "1517"]
[BlackElo "1658"]
[TimeControl "300"]
[EndTime "13:14:24 PDT"]
[Termination "defenderalist won by checkmate"]

1. e4 {[%clk 0:04:57.8]} 1... c6 {[%clk 0:04:58.5]} 2. d4 {[%clk 0:04:56.5]}
2... d5 {[%clk 0:04:58.2]} 3. Nc3 {[%clk 0:04:55.5]} 3... Nf6 {[%clk 0:04:57.8]}
4. e5 {[%clk 0:04:45.1]} 4... Ne4 {[%clk 0:04:57.1]} 5. Nxe4 {[%clk 0:04:43.8]}
5... dxe4 {[%clk 0:04:56.6]} 6. Bc4 {[%clk 0:04:42.3]} 6... Bf5 {[%clk
0:04:55.6]} 7. Ne2 {[%clk 0:04:39.4]} 7... e6 {[%clk 0:04:54.9]} 8. Ng3 {[%clk
0:04:35.9]} 8... Bg6 {[%clk 0:04:53.8]} 9. h4 {[%clk 0:04:32.9]} 9... h5 {[%clk
0:04:52.5]} 10. Bg5 {[%clk 0:04:30.1]} 10... Be7 {[%clk 0:04:51.5]} 11. Bxe7
{[%clk 0:04:28.7]} 11... Qxe7 {[%clk 0:04:51.2]} 12. Qe2 {[%clk 0:04:23.1]}
12... Nd7 {[%clk 0:04:48.8]} 13. Nxe4 {[%clk 0:04:20.7]} 13... Qb4+ {[%clk
0:04:47.2]} 14. c3 {[%clk 0:04:17.6]} 14... Qb6 {[%clk 0:04:43.4]} 15. Nd6+
{[%clk 0:04:13.8]} 15... Ke7 {[%clk 0:04:40.7]} 16. O-O-O {[%clk 0:04:07.6]}
16... a5 {[%clk 0:04:37]} 17. Bd3 {[%clk 0:04:06.4]} 17... Bxd3 {[%clk
0:04:31.6]} 18. Qxd3 {[%clk 0:04:05.3]} 18... a4 {[%clk 0:04:30.8]} 19. Qf3
{[%clk 0:03:58.9]} 19... Rhf8 {[%clk 0:04:29.1]} 20. Qxh5 {[%clk 0:03:53.6]}
20... g6 {[%clk 0:04:26.7]} 21. Qg5+ {[%clk 0:03:51.5]} 21... f6 {[%clk
0:04:23.7]} 22. Qxg6 {[%clk 0:03:46.9]} 22... a3 {[%clk 0:04:22.6]} 23. b3
{[%clk 0:03:39.3]} 23... f5 {[%clk 0:04:13.7]} 24. Qg7+ {[%clk 0:03:35.4]} 24...
Kd8 {[%clk 0:04:12.5]} 25. Nf7+ {[%clk 0:03:26.9]} 25... Kc7 {[%clk 0:04:11.1]}
26. Ng5 {[%clk 0:03:24]} 26... Rg8 {[%clk 0:04:10.1]} 27. Qe7 {[%clk 0:03:18.2]}
27... Qa5 {[%clk 0:04:09.1]} 28. Nxe6+ {[%clk 0:03:14.3]} 28... Kb6 {[%clk
0:04:06.6]} 29. b4 {[%clk 0:03:09.1]} 29... Qd5 {[%clk 0:04:05.5]} 30. Nc5
{[%clk 0:02:53.9]} 30... Nxc5 {[%clk 0:04:00.3]} 31. dxc5+ {[%clk 0:02:51.3]}
31... Kb5 {[%clk 0:03:57.3]} 32. Rxd5 {[%clk 0:02:49.3]} 32... cxd5 {[%clk
0:03:57.2]} 33. Qxb7+ {[%clk 0:02:48.2]} 33... Kc4 {[%clk 0:03:56.2]} 34. Rd1
{[%clk 0:02:36.5]} 34... Rab8 {[%clk 0:03:54]} 35. Qxd5+ {[%clk 0:02:31.6]}
35... Kb5 {[%clk 0:03:48.6]} 36. c6+ {[%clk 0:02:28.1]} 36... Ka4 {[%clk
0:03:47]} 37. Qa5# {[%clk 0:02:25.6]} 1-0

[Event "Live Chess"]
[Site "Chess.com"]
[Date "2024.06.01"]
[Round "-"]
[White "MaksymYurii"]
[Black "bonantagulo"]
[Result "0-1"]
[WhiteElo "932"]
[BlackElo "2109"]
[TimeControl "300"]
[EndTime "13:14:32 PDT"]
[Termination "bonantagulo won on time"]

1. e4 {[%clk 0:04:57.6]} 1... c5 {[%clk 0:04:54]} 2. Nf3 {[%clk 0:04:56.5]} 2...
e6 {[%clk 0:04:53.1]} 3. e5 {[%clk 0:04:55.5]} 3... d5 {[%clk 0:04:50.9]} 4. c3
{[%clk 0:04:53.6]} 4... d4 {[%clk 0:04:49.8]} 5. cxd4 {[%clk 0:04:51]} 5... cxd4
{[%clk 0:04:49.7]} 6. d3 {[%clk 0:04:50]} 6... Nc6 {[%clk 0:04:49.6]} 7. a4
{[%clk 0:04:37.9]} 7... Nge7 {[%clk 0:04:46.6]} 8. b4 {[%clk 0:04:36.3]} 8...
Nxb4 {[%clk 0:04:44.9]} 9. Ba3 {[%clk 0:04:30.8]} 9... Ng6 {[%clk 0:04:29.3]}
10. Nbd2 {[%clk 0:04:12.3]} 10... Be7 {[%clk 0:04:09.9]} 11. Nc4 {[%clk
0:03:49.8]} 11... O-O {[%clk 0:04:04.1]} 12. Be2 {[%clk 0:03:27.3]} 12... b6
{[%clk 0:03:59.3]} 13. O-O {[%clk 0:03:23.2]} 13... Bb7 {[%clk 0:03:58.6]} 14.
a5 {[%clk 0:03:08.3]} 14... b5 {[%clk 0:03:51.4]} 15. Ncd2 {[%clk 0:02:52.4]}
15... Qxa5 {[%clk 0:03:48.7]} 16. Ne4 {[%clk 0:02:32.7]} 16... Qb6 {[%clk
0:03:39.3]} 17. Qb1 {[%clk 0:02:23.5]} 17... a5 {[%clk 0:03:35.6]} 18. Bxb4
{[%clk 0:02:19.7]} 18... Bxb4 {[%clk 0:03:35.5]} 19. h4 {[%clk 0:02:02.2]} 19...
Nf4 {[%clk 0:03:32.7]} 20. Bd1 {[%clk 0:01:54]} 20... Bxe4 {[%clk 0:03:14.5]}
21. dxe4 {[%clk 0:01:49.7]} 21... Bc3 {[%clk 0:03:14]} 22. Ra2 {[%clk
0:01:37.3]} 22... a4 {[%clk 0:03:07.5]} 23. g3 {[%clk 0:01:28.2]} 23... Ng6
{[%clk 0:03:05.8]} 24. h5 {[%clk 0:01:21.5]} 24... Ne7 {[%clk 0:03:05.1]} 25.
Be2 {[%clk 0:01:07.6]} 25... b4 {[%clk 0:03:01.8]} 26. Rc2 {[%clk 0:00:37.3]}
26... b3 {[%clk 0:02:58.5]} 27. Rcc1 {[%clk 0:00:27.1]} 27... a3 {[%clk
0:02:56.6]} 28. Rcd1 {[%clk 0:00:25.6]} 28... a2 {[%clk 0:02:54.8]} 29. Qd3
{[%clk 0:00:18.9]} 29... b2 {[%clk 0:02:52.3]} 30. Nxd4 {[%clk 0:00:16.4]} 30...
Qxd4 {[%clk 0:02:50.4]} 31. Qxd4 {[%clk 0:00:13.3]} 31... Bxd4 {[%clk
0:02:50.3]} 32. Rxd4 {[%clk 0:00:11.9]} 32... a1=Q {[%clk 0:02:49.1]} 33. Rxa1
{[%clk 0:00:08.3]} 33... bxa1=Q+ {[%clk 0:02:49]} 34. Kg2 {[%clk 0:00:07.5]}
34... Qb2 {[%clk 0:02:47.7]} 35. Rd1 {[%clk 0:00:06]} 35... Qxe2 {[%clk
0:02:46.5]} 36. Rf1 {[%clk 0:00:05.1]} 36... Ra2 {[%clk 0:02:45.8]} 37. Kg1
{[%clk 0:00:02.7]} 37... Nc6 {[%clk 0:02:45.7]} 38. Kg2 {[%clk 0:00:02]} 38...
Nxe5 {[%clk 0:02:45.4]} 39. Kg1 {[%clk 0:00:01.1]} 39... Qf3 {[%clk 0:02:44.9]}
0-1

[Event "Live Chess"]
[Site "Chess.com"]
[Date "2024.06.01"]
[Round "-"]
[White "JanMur7"]
[Black "LL220284LL"]
[Result "0-1"]
[WhiteElo "2311"]
[BlackElo "2546"]
[TimeControl "300"]
[EndTime "13:14:44 PDT"]
[Termination "LL220284LL won by resignation"]

1. c4 {[%clk 0:04:58.6]} 1... c6 {[%clk 0:04:59.7]} 2. Nc3 {[%clk 0:04:57.7]}
2... g6 {[%clk 0:04:58.3]} 3. d4 {[%clk 0:04:57.6]} 3... Bg7 {[%clk 0:04:56.5]}
4. e4 {[%clk 0:04:55.4]} 4... d6 {[%clk 0:04:56]} 5. Be2 {[%clk 0:04:54.4]} 5...
Nd7 {[%clk 0:04:55]} 6. g4 {[%clk 0:04:49.6]} 6... c5 {[%clk 0:04:52]} 7. d5
{[%clk 0:04:48.5]} 7... h6 {[%clk 0:04:44.9]} 8. h4 {[%clk 0:04:46.9]} 8... a6
{[%clk 0:04:41.1]} 9. a4 {[%clk 0:04:44.1]} 9... Ndf6 {[%clk 0:04:31.2]} 10. Be3
{[%clk 0:04:38.4]} 10... Bd7 {[%clk 0:04:26.4]} 11. f4 {[%clk 0:04:19.1]} 11...
Qc8 {[%clk 0:04:21.4]} 12. f5 {[%clk 0:04:08.5]} 12... Nh7 {[%clk 0:04:01.1]}
13. fxg6 {[%clk 0:03:54.7]} 13... fxg6 {[%clk 0:03:59.2]} 14. h5 {[%clk
0:03:50.9]} 14... g5 {[%clk 0:03:53.8]} 15. Nh3 {[%clk 0:03:33.8]} 15... Be5
{[%clk 0:03:45]} 16. O-O {[%clk 0:03:27.4]} 16... Ngf6 {[%clk 0:03:41.8]} 17.
Nf2 {[%clk 0:03:22.7]} 17... Bg3 {[%clk 0:03:31.4]} 18. a5 {[%clk 0:03:06.3]}
18... Bxf2+ {[%clk 0:03:29.2]} 19. Rxf2 {[%clk 0:03:03.2]} 19... Nxg4 {[%clk
0:03:27.3]} 20. Bxg4 {[%clk 0:03:01.5]} 20... Bxg4 {[%clk 0:03:27.2]} 21. Qf1
{[%clk 0:02:56.6]} 21... Bxh5 {[%clk 0:03:21]} 22. Rg2 {[%clk 0:02:46.5]} 22...
Qh3 {[%clk 0:03:16.2]} 23. Qe1 {[%clk 0:02:22.1]} 23... Bf3 {[%clk 0:03:07.9]}
24. Rh2 {[%clk 0:02:00.8]} 24... Qg4+ {[%clk 0:03:06.3]} 25. Kf2 {[%clk
0:01:59]} 25... Rf8 {[%clk 0:03:04.9]} 0-1

[Event "Live Chess"]
[Site "Chess.com"]
[Date "2024.06.01"]
[Round "-"]
[White "DarranAS"]
[Black "Enhard"]
[Result "0-1"]
[WhiteElo "1427"]
[BlackElo "1436"]
[TimeControl "300"]
[EndTime "13:14:48 PDT"]
[Termination "Enhard won on time"]

1. e4 {[%clk 0:04:57]} 1... e6 {[%clk 0:04:58.2]} 2. Nc3 {[%clk 0:04:51.7]} 2...
d5 {[%clk 0:04:57.5]} 3. exd5 {[%clk 0:04:47.9]} 3... exd5 {[%clk 0:04:56.7]} 4.
Nf3 {[%clk 0:04:42.1]} 4... Nf6 {[%clk 0:04:55.7]} 5. d3 {[%clk 0:04:38.9]} 5...
Be7 {[%clk 0:04:54.1]} 6. Bf4 {[%clk 0:04:32]} 6... Bg4 {[%clk 0:04:52.7]} 7.
Nb5 {[%clk 0:04:27.7]} 7... Na6 {[%clk 0:04:42.1]} 8. Be2 {[%clk 0:04:23.2]}
8... c6 {[%clk 0:04:40.7]} 9. Nbd4 {[%clk 0:04:19.5]} 9... O-O {[%clk
0:04:38.4]} 10. O-O {[%clk 0:04:16.7]} 10... Nb8 {[%clk 0:04:35.6]} 11. Re1
{[%clk 0:04:07]} 11... Re8 {[%clk 0:04:33.6]} 12. Ne5 {[%clk 0:03:58.9]} 12...
Bxe2 {[%clk 0:04:31.8]} 13. Rxe2 {[%clk 0:03:55.9]} 13... Nbd7 {[%clk
0:04:31.3]} 14. Qd2 {[%clk 0:03:49.3]} 14... Bc5 {[%clk 0:04:21.4]} 15. Nb3
{[%clk 0:03:43]} 15... Bd6 {[%clk 0:04:16]} 16. d4 {[%clk 0:03:37.3]} 16... Ne4
{[%clk 0:04:11.3]} 17. Qd3 {[%clk 0:03:24.8]} 17... f6 {[%clk 0:04:09.4]} 18.
Nxd7 {[%clk 0:03:19.9]} 18... Qxd7 {[%clk 0:04:07.1]} 19. Bxd6 {[%clk
0:03:14.2]} 19... Qxd6 {[%clk 0:04:05.7]} 20. Rae1 {[%clk 0:03:13.8]} 20... Qd7
{[%clk 0:03:58.8]} 21. f3 {[%clk 0:03:00.4]} 21... Ng5 {[%clk 0:03:57.3]} 22.
Nc5 {[%clk 0:02:53.7]} 22... Qf7 {[%clk 0:03:50]} 23. Rxe8+ {[%clk 0:02:45.4]}
23... Rxe8 {[%clk 0:03:46.7]} 24. Rb1 {[%clk 0:02:21]} 24... Ne6 {[%clk
0:03:30.3]} 25. Nb3 {[%clk 0:02:13.8]} 25... Nf4 {[%clk 0:03:24.9]} 26. Qf5
{[%clk 0:01:55]} 26... Ne6 {[%clk 0:02:58]} 27. c3 {[%clk 0:01:49.5]} 27... Ng5
{[%clk 0:02:52.7]} 28. Qd3 {[%clk 0:01:40.9]} 28... Qe7 {[%clk 0:02:44.6]} 29.
Kf1 {[%clk 0:01:19.3]} 29... Qd6 {[%clk 0:02:38.9]} 30. Kg1 {[%clk 0:01:10.3]}
30... Qf4 {[%clk 0:02:24.8]} 31. Rd1 {[%clk 0:01:01.4]} 31... Re3 {[%clk
0:02:22.5]} 32. Qd2 {[%clk 0:00:53.7]} 32... Nxf3+ {[%clk 0:01:42.4]} 33. gxf3
{[%clk 0:00:45.2]} 33... Qxf3 {[%clk 0:01:40.6]} 34. Rf1 {[%clk 0:00:23.9]}
34... Qg4+ {[%clk 0:01:35.7]} 35. Kh1 {[%clk 0:00:22.7]} 35... Qe4+ {[%clk
0:01:33.8]} 36. Kg1 {[%clk 0:00:21.6]} 36... Re2 {[%clk 0:01:28.8]} 37. Rf2
{[%clk 0:00:11.3]} 37... Rxd2 {[%clk 0:01:25]} 38. Rxd2 {[%clk 0:00:10.1]} 38...
Qg4+ {[%clk 0:01:23.9]} 39. Kf2 {[%clk 0:00:08.4]} 39... Qf4+ {[%clk 0:01:20.9]}
40. Kg2 {[%clk 0:00:06.6]} 40... Qxd2+ {[%clk 0:01:19.5]} 41. Nxd2 {[%clk
0:00:05]} 41... f5 {[%clk 0:01:18.1]} 42. Kf3 {[%clk 0:00:04.2]} 42... g6 {[%clk
0:01:17.3]} 43. h4 {[%clk 0:00:04.1]} 43... Kf7 {[%clk 0:01:16.2]} 44. b3 {[%clk
0:00:04]} 44... Kf6 {[%clk 0:01:14.7]} 45. a3 {[%clk 0:00:03.9]} 45... h5 {[%clk
0:01:13.4]} 46. c4 {[%clk 0:00:03.7]} 46... dxc4 {[%clk 0:01:09.8]} 47. bxc4
{[%clk 0:00:03.6]} 47... g5 {[%clk 0:01:07.5]} 48. hxg5+ {[%clk 0:00:02.1]}
48... Kxg5 {[%clk 0:01:06.7]} 49. Nb3 {[%clk 0:00:01.4]} 49... h4 {[%clk
0:01:05.4]} 50. Kg2 {[%clk 0:00:00.2]} 50... f4 {[%clk 0:01:03.7]} 0-1

[Event "Live Chess"]
[Site "Chess.com"]
[Date "2024.06.01"]
[Round "-"]
[White "Ferrarifan27"]
[Black "Plato_77"]
[Result "1-0"]
[WhiteElo "2067"]
[BlackElo "1361"]
[TimeControl "300"]
[EndTime "13:14:53 PDT"]
[Termination "Ferrarifan27 won on time"]

1. e4 {[%clk 0:04:45.9]} 1... e6 {[%clk 0:04:52.5]} 2. d4 {[%clk 0:04:43.7]}
2... d5 {[%clk 0:04:51.5]} 3. Nc3 {[%clk 0:04:41.5]} 3... Bb4 {[%clk 0:04:49.5]}
4. e5 {[%clk 0:04:40.1]} 4... c5 {[%clk 0:04:47]} 5. a3 {[%clk 0:04:36.6]} 5...
Bxc3+ {[%clk 0:04:44.2]} 6. bxc3 {[%clk 0:04:34.7]} 6... Nc6 {[%clk 0:04:42]} 7.
a4 {[%clk 0:04:33]} 7... Nge7 {[%clk 0:04:34.1]} 8. Nf3 {[%clk 0:04:16.6]} 8...
O-O {[%clk 0:04:24.5]} 9. Bd3 {[%clk 0:04:15.2]} 9... c4 {[%clk 0:04:03.9]} 10.
Bxh7+ {[%clk 0:04:09.7]} 10... Kxh7 {[%clk 0:03:45.3]} 11. Ng5+ {[%clk
0:04:06.4]} 11... Kg6 {[%clk 0:03:39.9]} 12. Qg4 {[%clk 0:04:03.4]} 12... f5
{[%clk 0:03:36.4]} 13. exf6 {[%clk 0:03:56.8]} 13... Kxf6 {[%clk 0:03:28.2]} 14.
Nh7+ {[%clk 0:03:32]} 14... Kf7 {[%clk 0:03:15.4]} 15. Nxf8 {[%clk 0:03:28.2]}
15... Kxf8 {[%clk 0:03:11.2]} 16. O-O {[%clk 0:03:26.4]} 16... e5 {[%clk
0:03:06.8]} 17. Qf3+ {[%clk 0:03:23.9]} 17... Kg8 {[%clk 0:03:02.5]} 18. dxe5
{[%clk 0:03:22.6]} 18... Nxe5 {[%clk 0:03:00.3]} 19. Qg3 {[%clk 0:03:21.7]}
19... N5c6 {[%clk 0:02:52.9]} 20. Re1 {[%clk 0:03:10.5]} 20... Bf5 {[%clk
0:02:43]} 21. Bh6 {[%clk 0:03:03.3]} 21... Ng6 {[%clk 0:02:30.7]} 22. Re2 {[%clk
0:02:57.6]} 22... gxh6 {[%clk 0:02:23.1]} 23. Rae1 {[%clk 0:02:53.7]} 23... Qg5
{[%clk 0:02:17.3]} 24. Qc7 {[%clk 0:02:49.6]} 24... Be4 {[%clk 0:02:07]} 25. g3
{[%clk 0:02:41.1]} 25... Nh4 {[%clk 0:02:01.3]} 26. f4 {[%clk 0:02:28.8]} 26...
Nf3+ {[%clk 0:01:56.5]} 27. Kf2 {[%clk 0:02:27.8]} 27... Qh5 {[%clk 0:01:30.4]}
28. Qxb7 {[%clk 0:02:05.7]} 28... Qxh2+ {[%clk 0:01:25.3]} 29. Ke3 {[%clk
0:02:03.3]} 29... Qxg3 {[%clk 0:01:08.2]} 30. Qxa8+ {[%clk 0:02:02.1]} 30... Kf7
{[%clk 0:01:05.1]} 31. Qb7+ {[%clk 0:02:00]} 31... Ne7 {[%clk 0:01:02.3]} 32.
Rd1 {[%clk 0:01:10.1]} 32... Ne5+ {[%clk 0:00:36.2]} 33. Kd4 {[%clk 0:00:49.9]}
33... Qxf4 {[%clk 0:00:19]} 34. Kc5 {[%clk 0:00:45.1]} 34... Qf6 {[%clk
0:00:04.7]} 35. Rg1 {[%clk 0:00:17.4]} 35... Nd7+ {[%clk 0:00:03.7]} 36. Kb4
{[%clk 0:00:12.5]} 36... Qd6+ {[%clk 0:00:01.5]} 37. Ka5 {[%clk 0:00:11.7]} 1-0

[Event "Live Chess"]
[Site "Chess.com"]
[Date "2024.06.01"]
[Round "-"]
[White "Isambard_Thomas"]
[Black "AndrewBak1"]
[Result "1-0"]
[WhiteElo "2167"]
[BlackElo "1831"]
[TimeControl "300"]
[EndTime "13:15:06 PDT"]
[Termination "Isambard_Thomas won by resignation"]

1. d4 {[%clk 0:04:58.2]} 1... d5 {[%clk 0:04:58.6]} 2. Bg5 {[%clk 0:04:56.8]}
2... Nf6 {[%clk 0:04:55.2]} 3. Nf3 {[%clk 0:04:54.1]} 3... Ne4 {[%clk
0:04:53.9]} 4. h4 {[%clk 0:04:52.6]} 4... c5 {[%clk 0:04:48.4]} 5. c3 {[%clk
0:04:51.2]} 5... Nc6 {[%clk 0:04:47]} 6. e3 {[%clk 0:04:50.5]} 6... Qb6 {[%clk
0:04:45.5]} 7. b3 {[%clk 0:04:49.1]} 7... Bf5 {[%clk 0:04:43]} 8. Bd3 {[%clk
0:04:45.3]} 8... Nxg5 {[%clk 0:04:33.7]} 9. hxg5 {[%clk 0:04:41.2]} 9... Bxd3
{[%clk 0:04:27.8]} 10. Qxd3 {[%clk 0:04:41.1]} 10... g6 {[%clk 0:04:26.5]} 11.
dxc5 {[%clk 0:04:00.8]} 11... Qxc5 {[%clk 0:04:17.2]} 12. b4 {[%clk 0:03:46]}
12... Qc4 {[%clk 0:04:06.2]} 13. Qxc4 {[%clk 0:03:36.3]} 13... dxc4 {[%clk
0:04:06.1]} 14. Na3 {[%clk 0:03:35.5]} 14... Bg7 {[%clk 0:03:48]} 15. Rc1 {[%clk
0:03:33.3]} 15... O-O {[%clk 0:03:23.8]} 16. Rh4 {[%clk 0:03:26.9]} 16... Rac8
{[%clk 0:03:18.4]} 17. Rxc4 {[%clk 0:03:19.7]} 17... e6 {[%clk 0:03:04.4]} 18.
Nb5 {[%clk 0:03:12.1]} 18... a6 {[%clk 0:02:50.7]} 19. Nd6 {[%clk 0:03:05.3]}
19... Rc7 {[%clk 0:02:50.1]} 20. Nxb7 {[%clk 0:02:54.8]} 20... Rxb7 {[%clk
0:02:50]} 21. Rxc6 {[%clk 0:02:54]} 21... a5 {[%clk 0:02:44.9]} 22. bxa5 {[%clk
0:02:49.8]} 22... Rb2 {[%clk 0:02:40.1]} 23. a4 {[%clk 0:02:15.4]} 23... Ra2
{[%clk 0:02:36.6]} 24. Rc4 {[%clk 0:02:14.2]} 24... Ra8 {[%clk 0:02:26.5]} 25.
Rb1 {[%clk 0:01:59.3]} 25... Ra3 {[%clk 0:02:20.6]} 26. Nd4 {[%clk 0:01:56.5]}
26... Bxd4 {[%clk 0:02:15]} 27. cxd4 {[%clk 0:01:52.2]} 27... Rxa5 {[%clk
0:02:14.3]} 28. Rb8+ {[%clk 0:01:51]} 28... Kg7 {[%clk 0:02:12.1]} 29. Rbb4
{[%clk 0:01:50.6]} 29... Ra2 {[%clk 0:02:07.9]} 30. g3 {[%clk 0:01:48.2]} 30...
Rxg5 {[%clk 0:02:05]} 31. Rc5 {[%clk 0:01:44.2]} 31... Rxc5 {[%clk 0:01:12]} 32.
dxc5 {[%clk 0:01:41]} 32... Rc2 {[%clk 0:01:07.1]} 33. Rb5 {[%clk 0:01:38.6]}
33... Kf6 {[%clk 0:01:00.9]} 34. a5 {[%clk 0:01:33.9]} 34... Ke7 {[%clk
0:01:00]} 35. a6 {[%clk 0:01:30.3]} 35... Ra2 {[%clk 0:00:59]} 36. Rb7+ {[%clk
0:01:23.7]} 36... Ke8 {[%clk 0:00:56.3]} 37. a7 {[%clk 0:01:21.2]} 1-0

[Event "Live Chess"]
[Site "Chess.com"]
[Date "2024.06.01"]
[Round "-"]
[White "Inglaterra"]
[Black "Ksenia_2013"]
[Result "1-0"]
[WhiteElo "2043"]
[BlackElo "833"]
[TimeControl "300"]
[EndTime "13:15:07 PDT"]
[Termination "Inglaterra won by checkmate"]

1. e4 {[%clk 0:04:57.8]} 1... e5 {[%clk 0:04:58.6]} 2. Nf3 {[%clk 0:04:56.8]}
2... Nc6 {[%clk 0:04:57.1]} 3. d4 {[%clk 0:04:56.3]} 3... exd4 {[%clk
0:04:55.3]} 4. Bc4 {[%clk 0:04:55.8]} 4... Bc5 {[%clk 0:04:53.3]} 5. O-O {[%clk
0:04:52.7]} 5... Nf6 {[%clk 0:04:51.3]} 6. e5 {[%clk 0:04:51.3]} 6... Ng4 {[%clk
0:04:49.6]} 7. h3 {[%clk 0:04:36.3]} 7... Ngxe5 {[%clk 0:04:45.1]} 8. Nxe5
{[%clk 0:04:35.1]} 8... Nxe5 {[%clk 0:04:43.6]} 9. Re1 {[%clk 0:04:33.6]} 9...
Bd6 {[%clk 0:04:40]} 10. f4 {[%clk 0:04:30.5]} 10... f6 {[%clk 0:04:35.2]} 11.
fxe5 {[%clk 0:04:28.6]} 11... fxe5 {[%clk 0:04:33.9]} 12. Qxd4 {[%clk
0:04:12.2]} 12... b6 {[%clk 0:04:22.4]} 13. Qd5 {[%clk 0:04:09.2]} 13... Rb8
{[%clk 0:04:15.2]} 14. Qf7# {[%clk 0:04:07.5]} 1-0